[Event "21th IPCA World Individual Chp."]
[Site "followchess.com"]
[Date "2022.05.16"]
[Round "9"]
[White "Vardi, Moshe"]
[Black "Klein, Djimmy"]
[Result "1-0"]
[WhiteElo "1631"]
[BlackElo "1392"]
[ECO "C44"]
[WhiteFed "ISR"]
[BlackFed "FRA"]
[FCGameId "-214961027"]
[WhiteFideId "2801710"]
[BlackFideId "20669445"]
[TimeControl "5400+30"]

1. e4 {[%clk 1:29:42]} e5 {[%clk 1:30:52]} 2. Nf3 {[%clk 1:30:09]} Nc6 
{[%clk 1:31:16]} 3. d4 {[%clk 1:30:09]} exd4 {[%clk 1:31:37]} 4. Bc4 
{[%clk 1:30:26]} h6 {[%clk 1:31:27]} 5. Nxd4 {[%clk 1:30:22]} Ne5 
{[%clk 1:29:19]} 6. Bb3 {[%clk 1:29:41]} Bd6 {[%clk 1:27:51]} 7. Nf5 
{[%clk 1:28:40]} Qf6 {[%clk 1:26:26]} 8. Nxd6+ cxd6 9. Nc3 {[%clk 1:26:46]} Ne7 
{[%clk 1:26:37]} 10. O-O {[%clk 1:26:43]} O-O {[%clk 1:24:57]} 11. Kh1 
{[%clk 1:25:30]} Qh4 {[%clk 1:20:36]} 12. f3 b6 {[%clk 1:16:51]} 13. Qxd6 
{[%clk 1:23:17]} N5g6 {[%clk 1:15:13]} 14. Nd5 {[%clk 1:22:34]} Ba6 
{[%clk 1:14:36]} 15. Rd1 {[%clk 1:22:15]} Be2 {[%clk 1:14:58]} 16. Rg1 
{[%clk 1:21:43]} Kh8 {[%clk 1:10:39]} 17. Be3 {[%clk 1:20:13]} Rac8 
{[%clk 1:00:34]} 18. Rae1 {[%clk 1:20:13]} Bb5 {[%clk 1:00:47]} 19. Nxe7 Nxe7 
20. c3 {[%clk 1:15:24]} Rc6 {[%clk 0:54:52]} 21. Qxd7 Rc5 {[%clk 0:55:04]} 22. 
Qh3 {[%clk 1:13:12]} Qxh3 {[%clk 0:54:02]} 23. gxh3 {[%clk 1:13:00]} Rc6 
{[%clk 0:53:43]} 24. a4 {[%clk 1:10:50]} Ba6 {[%clk 0:53:55]} 25. Rg4 
{[%clk 1:10:58]} Ng6 {[%clk 0:53:25]} 26. Reg1 {[%clk 1:10:53]} Rd6 
{[%clk 0:43:28]} 27. Bxf7 {[%clk 1:08:54]} Rxf7 {[%clk 0:43:40]} 28. Rxg6 Rxg6 
29. Rxg6 {[%clk 1:08:40]} Rxf3 {[%clk 0:43:48]} 30. Bd4 {[%clk 1:06:29]} Rf7 
{[%clk 0:41:47]} 31. Rxh6+ {[%clk 1:05:40]} Kg8 32. Rh4 {[%clk 1:04:32]} Bb7 
{[%clk 0:41:15]} 33. Kg1 {[%clk 1:04:30]} Re7 {[%clk 0:39:19]} 34. e5 
{[%clk 1:04:35]} Re6 {[%clk 0:39:32]} 35. Kf2 {[%clk 1:04:38]} Kf7 
{[%clk 0:37:14]} 36. Rf4+ {[%clk 1:04:21]} Ke8 {[%clk 0:35:57]} 37. h4 
{[%clk 1:03:58]} Rg6 {[%clk 0:35:43]} 38. Ke3 {[%clk 0:59:16]} Bd5 
{[%clk 0:33:14]} 39. h5 {[%clk 0:58:16]} Rg5 {[%clk 0:32:27]} 40. Rh4 
{[%clk 0:57:34]} Rf5 {[%clk 0:31:49]} 41. h6 {[%clk 0:57:28]} Rf3+ 
{[%clk 0:30:31]} 42. Ke2 {[%clk 0:56:22]} gxh6 {[%clk 0:30:40]} 43. Rxh6 
{[%clk 0:56:37]} Ke7 {[%clk 0:30:17]} 44. h4 {[%clk 0:56:23]} Rf7 
{[%clk 0:30:24]} 45. h5 {[%clk 0:55:24]} Bb3 {[%clk 0:28:45]} 46. a5 
{[%clk 0:55:13]} Bc4+ {[%clk 0:28:21]} 47. Ke3 {[%clk 0:55:18]} bxa5 
{[%clk 0:27:13]} 48. Bxa7 {[%clk 0:54:57]} a4 {[%clk 0:26:39]} 49. Bc5+ 
{[%clk 0:55:11]} Ke8 {[%clk 0:25:07]} 50. Rh8+ {[%clk 0:52:42]} Kd7 
{[%clk 0:20:28]} 51. h6 {[%clk 0:52:20]} Ke6 52. Bd6 {[%clk 0:46:25]} Bd5 
{[%clk 0:19:24]} 53. Re8+ {[%clk 0:45:59]} Kf5 {[%clk 0:18:27]} 54. Rf8 
{[%clk 0:45:18]} Kg6 {[%clk 0:18:30]} 55. Rxf7 {[%clk 0:45:24]} Bxf7 
{[%clk 0:18:36]} 56. Bf8 {[%clk 0:45:38]} Bg8 {[%clk 0:17:58]} 57. Bg7 
{[%clk 0:45:50]} Kf7 {[%clk 0:17:45]} 58. Kd4 {[%clk 0:46:18]} Ke6 
{[%clk 0:17:58]} 59. Kc5 {[%clk 0:46:04]} Bh7 {[%clk 0:18:07]} 60. Kb4 Bc2 61. 
c4 {[%clk 0:45:25]} Kf7 {[%clk 0:17:17]} 62. c5 {[%clk 0:45:02]} Ke6 
{[%clk 0:16:41]} 63. c6 {[%clk 0:44:49]} Ke7 {[%clk 0:16:16]} 64. Kc5 
{[%clk 0:45:01]} Kd8 {[%clk 0:12:32]} 65. Kd6 {[%clk 0:44:16]} Bf5 
{[%clk 0:08:12]} 66. Bf6+ {[%clk 0:44:28]} Kc8 {[%clk 0:08:18]} 67. e6 
{[%clk 0:44:43]} Kb8 {[%clk 0:05:13]} 68. e7 {[%clk 0:44:09]} Bg6 
{[%clk 0:05:09]} 69. h7 {[%clk 0:44:20]} Bxh7 {[%clk 0:04:19]} 70. e8=Q+ Ka7 71. 
Qe7+ {[%clk 0:44:20]} Ka8 {[%clk 0:04:29]} 72. Qb7# {[%clk 0:44:33]} 1-0

[Event "21th IPCA World Individual Chp."]
[Site "followchess.com"]
[Date "2022.05.16"]
[Round "9"]
[White "Cosic, Radoslav"]
[Black "Freiberg, Doron"]
[Result "1-0"]
[WhiteElo "2003"]
[BlackElo "1244"]
[ECO "A04"]
[WhiteFed "CRO"]
[BlackFed "ISR"]
[FCGameId "-894012185"]
[WhiteFideId "14504367"]
[BlackFideId "2841312"]
[TimeControl "5400+30"]

1. Nf3 f5 2. b3 d6 3. d4 Nd7 4. Bb2 Ngf6 5. Ng5 {[%clk 1:30:49]} Nb6 
{[%clk 1:17:00]} 6. Nf3 {[%clk 1:31:44]} Nbd7 {[%clk 1:15:30]} 7. Ng5 
{[%clk 1:31:05]} Nb6 {[%clk 1:15:03]} 8. c4 {[%clk 1:31:24]} c6 {[%clk 1:10:56]} 
9. e3 {[%clk 1:31:39]} h6 {[%clk 1:10:24]} 10. Nf3 {[%clk 1:32:07]} e6 
{[%clk 1:07:25]} 11. Nh4 Bd7 {[%clk 1:06:44]} 12. Ng6 {[%clk 1:32:20]} Rg8 
{[%clk 1:06:59]} 13. h4 {[%clk 1:32:14]} Qc7 {[%clk 1:06:58]} 14. a4 
{[%clk 1:32:24]} O-O-O {[%clk 1:04:13]} 15. a5 {[%clk 1:30:21]} Na8 
{[%clk 1:04:37]} 16. Bd3 {[%clk 1:28:51]} Be8 {[%clk 1:04:40]} 17. Nxf8 
{[%clk 1:27:22]} Rxf8 {[%clk 1:05:05]} 18. Nc3 {[%clk 1:27:33]} c5 
{[%clk 0:59:58]} 19. d5 exd5 20. Bxf5+ Bd7 {[%clk 0:54:18]} 21. Nb5 
{[%clk 1:26:51]} Qb8 22. Bxd7+ {[%clk 1:25:16]} Kxd7 {[%clk 0:52:44]} 23. Bxf6 
{[%clk 1:23:24]} Rxf6 {[%clk 0:52:51]} 24. Qg4+ {[%clk 1:23:32]} Kc6 
{[%clk 0:52:13]} 1-0

[Event "21th IPCA World Individual Chp."]
[Site "followchess.com"]
[Date "2022.05.16"]
[Round "9"]
[White "Mekus, Manuela"]
[Black "Volodarsky, Michael"]
[Result "1-0"]
[WhiteElo "1644"]
[BlackElo "1400"]
[ECO "A06"]
[WhiteFed "GER"]
[BlackFed "ISR"]
[FCGameId "2049157180"]
[WhiteFideId "16202562"]
[BlackFideId "2814366"]
[TimeControl "5400+30"]

1. Nf3 {[%clk 1:30:56]} d5 {[%clk 1:30:43]} 2. d3 {[%clk 1:31:17]} Nf6 
{[%clk 1:30:21]} 3. c3 {[%clk 1:31:03]} e6 {[%clk 1:29:31]} 4. g3 
{[%clk 1:31:17]} b6 {[%clk 1:29:57]} 5. Bg2 {[%clk 1:31:38]} Bb7 
{[%clk 1:30:13]} 6. Nbd2 {[%clk 1:31:28]} c5 {[%clk 1:30:32]} 7. O-O 
{[%clk 1:31:45]} Bd6 {[%clk 1:30:27]} 8. Re1 {[%clk 1:31:04]} O-O 
{[%clk 1:30:52]} 9. e4 {[%clk 1:31:18]} dxe4 10. dxe4 {[%clk 1:31:32]} Bc7 
{[%clk 1:26:57]} 11. Qc2 {[%clk 1:30:55]} e5 {[%clk 1:24:10]} 12. h4 
{[%clk 1:23:49]} Nc6 13. Nh2 {[%clk 1:16:54]} Ba6 {[%clk 1:17:10]} 14. Re3 
{[%clk 1:14:14]} Qd7 {[%clk 1:12:14]} 15. Qa4 {[%clk 1:07:27]} Nb8 
{[%clk 1:03:49]} 16. Qb3 {[%clk 1:05:28]} Nc6 {[%clk 1:01:00]} 17. g4 
{[%clk 0:58:06]} Nxg4 {[%clk 0:56:30]} 18. Bh3 {[%clk 0:57:57]} Qe7 
{[%clk 0:52:44]} 19. Bxg4 {[%clk 0:57:17]} Qxh4 {[%clk 0:53:11]} 20. Rh3 
{[%clk 0:55:24]} Qf6 {[%clk 0:50:46]} 21. Ndf3 {[%clk 0:55:08]} h6 
{[%clk 0:50:14]} 22. Bf5 {[%clk 0:54:45]} Ne7 {[%clk 0:47:22]} 23. Ng4 
{[%clk 0:54:32]} Qd6 {[%clk 0:45:15]} 24. Nfxe5 {[%clk 0:39:29]} c4 
{[%clk 0:36:43]} 25. Nxc4 {[%clk 0:37:17]} Bxc4 {[%clk 0:36:43]} 26. Qxc4 
{[%clk 0:37:33]} Nxf5 {[%clk 0:36:31]} 27. exf5 {[%clk 0:37:39]} Qd1+ 
{[%clk 0:35:01]} 28. Kg2 {[%clk 0:37:23]} Rac8 {[%clk 0:34:10]} 29. f6 
{[%clk 0:35:55]} Bh2 {[%clk 0:31:40]} 30. Qf1 {[%clk 0:28:28]} Qxg4+ 
{[%clk 0:29:56]} 31. Kxh2 Qf5 {[%clk 0:21:25]} 32. fxg7 {[%clk 0:28:46]} Qe5+ 
{[%clk 0:21:24]} 33. f4 {[%clk 0:28:16]} Qf5 34. gxf8=Q+ Kxf8 {[%clk 0:19:02]} 
35. Rxh6 Kg7 {[%clk 0:16:42]} 36. Rh3 {[%clk 0:27:51]} Rc6 {[%clk 0:16:11]} 37. 
Be3 {[%clk 0:26:48]} Rg6 38. Bd4+ f6 39. Qf2 Kf7 40. Rh8 Kg7 41. Rh3 Kf7 42. Re1 
Rg4 43. Rh4 Rxh4+ 44. Qxh4 Qc2+ 45. Bf2 Qf5 46. Re2 Qd3 {[%clk 0:16:17]} 47. 
Qh5+ 1-0

[Event "21th IPCA World Individual Chp."]
[Site "followchess.com"]
[Date "2022.05.15"]
[Round "8"]
[White "Obodchuk, Andrei"]
[Black "Lipilin, Ilia"]
[Result "1-0"]
[WhiteElo "2295"]
[BlackElo "2198"]
[ECO "D27"]
[WhiteFed "RUS"]
[BlackFed "RUS"]
[FCGameId "1286902950"]
[WhiteFideId "4114310"]
[BlackFideId "54113245"]
[TimeControl "5400+30"]

1. d4 {[%clk 1:30:58]} d5 {[%clk 1:30:48]} 2. Nf3 {[%clk 1:31:25]} Nf6 
{[%clk 1:31:07]} 3. c4 {[%clk 1:31:52]} dxc4 {[%clk 1:31:24]} 4. e3 
{[%clk 1:32:20]} e6 {[%clk 1:31:39]} 5. Bxc4 {[%clk 1:32:44]} a6 
{[%clk 1:32:00]} 6. O-O {[%clk 1:33:04]} c5 {[%clk 1:32:22]} 7. Re1 
{[%clk 1:33:26]} Nc6 {[%clk 1:32:00]} 8. Nc3 {[%clk 1:33:33]} b5 
{[%clk 1:31:36]} 9. Bd3 {[%clk 1:33:46]} Bb7 {[%clk 1:31:58]} 10. a4 
{[%clk 1:33:11]} b4 {[%clk 1:32:01]} 11. Ne4 {[%clk 1:32:28]} cxd4 
{[%clk 1:20:59]} 12. exd4 {[%clk 1:32:39]} Be7 {[%clk 1:18:11]} 13. Bf4 
{[%clk 1:18:15]} Nd5 {[%clk 1:15:07]} 14. Bg3 {[%clk 1:17:30]} O-O 
{[%clk 1:10:58]} 15. Nc5 {[%clk 1:15:09]} Bxc5 {[%clk 0:56:21]} 16. dxc5 
{[%clk 1:15:33]} Qf6 {[%clk 0:56:06]} 17. Bh4 {[%clk 1:10:31]} Qxb2 
{[%clk 0:51:21]} 18. Re2 {[%clk 1:10:03]} Qc3 {[%clk 0:48:34]} 19. Rc2 
{[%clk 1:09:36]} Ne3 {[%clk 0:43:51]} 20. fxe3 {[%clk 1:09:25]} Qb3 
{[%clk 0:44:12]} 21. Rc4 {[%clk 1:05:13]} Qxd1+ {[%clk 0:44:07]} 22. Rxd1 
{[%clk 1:05:42]} a5 {[%clk 0:43:08]} 23. Rcc1 {[%clk 1:05:33]} h6 
{[%clk 0:42:31]} 24. Be4 {[%clk 1:05:42]} g5 {[%clk 0:41:14]} 25. Bg3 
{[%clk 1:06:00]} Rfd8 {[%clk 0:41:12]} 26. Ne5 {[%clk 1:05:01]} Rac8 
{[%clk 0:37:56]} 27. Rxd8+ {[%clk 1:04:31]} Nxd8 {[%clk 0:38:16]} 28. Bxb7 
{[%clk 1:04:25]} Nxb7 {[%clk 0:38:36]} 29. c6 {[%clk 1:04:40]} Nd6 
{[%clk 0:39:00]} 30. Nd7 {[%clk 1:04:39]} Ne4 {[%clk 0:33:04]} 31. Be5 
{[%clk 1:04:43]} f6 {[%clk 0:28:42]} 32. Nxf6+ {[%clk 1:05:02]} Nxf6 
{[%clk 0:28:57]} 33. Bxf6 {[%clk 1:05:29]} Kf7 {[%clk 0:29:06]} 34. Be5 
{[%clk 1:05:56]} h5 {[%clk 0:29:02]} 35. c7 {[%clk 1:06:22]} Kg6 
{[%clk 0:29:02]} 36. e4 {[%clk 1:06:46]} 1-0

[Event "21th IPCA World Individual Chp."]
[Site "followchess.com"]
[Date "2022.05.15"]
[Round "8"]
[White "Mikheev, Stanislav"]
[Black "Gurbanov, Andrei"]
[Result "1-0"]
[WhiteElo "2333"]
[BlackElo "2302"]
[ECO "A09"]
[WhiteFed "SRB"]
[BlackFed "ISR"]
[FCGameId "-714323646"]
[WhiteFideId "4135920"]
[BlackFideId "13503391"]
[TimeControl "5400+30"]

1. c4 {[%clk 1:30:55]} e6 {[%clk 1:30:34]} 2. Nf3 {[%clk 1:31:05]} d5 
{[%clk 1:30:58]} 3. g3 {[%clk 1:31:21]} dxc4 {[%clk 1:30:05]} 4. Qa4+ 
{[%clk 1:31:32]} Nd7 {[%clk 1:30:22]} 5. Bg2 {[%clk 1:31:44]} a6 
{[%clk 1:30:11]} 6. Qxc4 {[%clk 1:32:00]} b5 {[%clk 1:29:03]} 7. Qc2 
{[%clk 1:32:02]} Bb7 {[%clk 1:28:58]} 8. O-O {[%clk 1:31:27]} c5 
{[%clk 1:28:00]} 9. b3 {[%clk 1:28:36]} Ngf6 {[%clk 1:27:20]} 10. Bb2 
{[%clk 1:28:28]} Be7 {[%clk 1:27:19]} 11. d3 {[%clk 1:26:49]} O-O 
{[%clk 1:26:14]} 12. Nbd2 {[%clk 1:27:04]} Qb6 {[%clk 1:24:13]} 13. Rac1 
{[%clk 1:26:01]} Rfd8 {[%clk 1:18:44]} 14. Qb1 {[%clk 1:25:04]} Rac8 
{[%clk 1:18:15]} 15. a3 {[%clk 1:24:46]} Nb8 {[%clk 1:17:25]} 16. e3 
{[%clk 1:18:49]} Qa7 {[%clk 1:10:14]} 17. b4 {[%clk 1:09:19]} cxb4 
{[%clk 1:07:54]} 18. Bd4 {[%clk 1:08:20]} Qa8 {[%clk 1:06:51]} 19. axb4 
{[%clk 1:07:57]} Nbd7 {[%clk 1:06:16]} 20. e4 {[%clk 0:59:38]} Rxc1 
{[%clk 1:03:58]} 21. Rxc1 {[%clk 1:00:06]} Rc8 {[%clk 1:04:20]} 22. Rxc8+ 
{[%clk 0:51:57]} Qxc8 {[%clk 1:04:20]} 23. Ne1 {[%clk 0:52:11]} e5 
{[%clk 0:56:26]} 24. Ba1 {[%clk 0:52:24]} Bd6 {[%clk 0:55:53]} 25. Nc2 
{[%clk 0:45:58]} Qc7 {[%clk 0:51:53]} 26. h3 {[%clk 0:41:46]} Nb6 
{[%clk 0:50:59]} 27. Qb3 {[%clk 0:39:08]} h6 {[%clk 0:43:54]} 28. Kh2 
{[%clk 0:38:13]} Na4 {[%clk 0:40:56]} 29. d4 {[%clk 0:36:48]} exd4 
{[%clk 0:41:01]} 30. Bxd4 {[%clk 0:37:06]} Be5 {[%clk 0:38:38]} 31. f4 
{[%clk 0:33:24]} Bxd4 {[%clk 0:36:12]} 32. Nxd4 {[%clk 0:33:51]} Qc1 
{[%clk 0:35:19]} 33. Qc2 {[%clk 0:27:38]} Qe1 {[%clk 0:27:47]} 34. N4f3 
{[%clk 0:22:53]} Qf2 {[%clk 0:24:02]} 35. Qc7 {[%clk 0:22:16]} Qb6 
{[%clk 0:17:26]} 36. Qe7 {[%clk 0:20:55]} Bc6 {[%clk 0:16:16]} 37. Ne5 
{[%clk 0:19:30]} Be8 {[%clk 0:16:29]} 38. f5 {[%clk 0:17:16]} Nc3 
{[%clk 0:14:38]} 39. Ng4 {[%clk 0:12:50]} Nxg4+ {[%clk 0:12:09]} 40. hxg4 
{[%clk 0:13:18]} Bc6 {[%clk 0:10:12]} 41. f6 {[%clk 0:13:41]} Ne2 
{[%clk 0:08:57]} 42. Nf3 {[%clk 0:09:39]} Qf2 {[%clk 0:06:18]} 43. Qd6 
{[%clk 0:09:46]} Ng1 {[%clk 0:02:38]} 44. Nxg1 {[%clk 0:08:22]} Bxe4 
{[%clk 0:03:07]} 45. Nf3 {[%clk 0:08:12]} Bxf3 {[%clk 0:02:27]} 46. Qd8+ 
{[%clk 0:08:35]} Kh7 {[%clk 0:02:55]} 47. Qd3+ {[%clk 0:08:59]} g6 
{[%clk 0:03:24]} 48. Qxf3 {[%clk 0:09:21]} Qb2 {[%clk 0:03:52]} 49. Qf4 
{[%clk 0:08:59]} Qc3 {[%clk 0:04:20]} 50. Qd6 {[%clk 0:09:04]} 1-0

[Event "21th IPCA World Individual Chp."]
[Site "followchess.com"]
[Date "2022.05.15"]
[Round "8"]
[White "Yarmonov, Igor"]
[Black "Zilberman, Yaacov"]
[Result "1/2-1/2"]
[WhiteElo "2394"]
[BlackElo "2315"]
[ECO "D41"]
[WhiteFed "UKR"]
[BlackFed "ISR"]
[FCGameId "2143772901"]
[WhiteFideId "14114496"]
[BlackFideId "2801612"]
[TimeControl "5400+30"]

1. d4 {[%clk 1:30:55]} Nf6 {[%clk 1:30:48]} 2. c4 {[%clk 1:31:03]} e6 
{[%clk 1:30:58]} 3. Nc3 {[%clk 1:31:05]} d5 {[%clk 1:31:16]} 4. Nf3 
{[%clk 1:30:55]} c5 {[%clk 1:30:37]} 5. cxd5 {[%clk 1:25:48]} Nxd5 
{[%clk 1:30:54]} 6. g3 {[%clk 1:21:27]} Nc6 {[%clk 1:29:23]} 7. Bg2 
{[%clk 1:14:04]} cxd4 {[%clk 1:28:33]} 8. Nxd4 {[%clk 1:13:51]} Nxc3 
{[%clk 1:28:38]} 9. bxc3 {[%clk 1:14:08]} Nxd4 {[%clk 1:28:33]} 10. cxd4 
{[%clk 1:13:15]} Bb4+ {[%clk 1:26:58]} 11. Kf1 {[%clk 1:13:38]} O-O 
{[%clk 1:20:14]} 12. e3 {[%clk 1:12:22]} Rb8 {[%clk 1:17:45]} 13. Qb3 
{[%clk 1:06:07]} Qa5 {[%clk 1:14:43]} 14. a3 {[%clk 0:55:11]} Bd6 
{[%clk 1:13:10]} 15. Be4 {[%clk 0:53:41]} Bd7 {[%clk 1:10:30]} 16. Kg2 
{[%clk 0:54:07]} Rfc8 {[%clk 1:06:06]} 17. Ra2 {[%clk 0:46:20]} Bc6 
{[%clk 0:56:38]} 18. Bxc6 {[%clk 0:46:47]} bxc6 {[%clk 0:53:36]} 19. Bd2 
{[%clk 0:45:17]} Rxb3 {[%clk 0:47:54]} 20. Bxa5 {[%clk 0:45:42]} Rxa3 
{[%clk 0:47:28]} 21. Rxa3 {[%clk 0:45:31]} Bxa3 {[%clk 0:47:42]} 22. Rb1 
{[%clk 0:44:58]} h5 {[%clk 0:39:59]} 23. Rb7 {[%clk 0:44:12]} c5 
{[%clk 0:35:23]} 24. Rb3 {[%clk 0:43:58]} Bb4 {[%clk 0:35:25]} 25. Bxb4 
{[%clk 0:44:25]} cxb4 {[%clk 0:35:35]} 26. Rxb4 {[%clk 0:44:37]} a5 
{[%clk 0:35:39]} 27. Ra4 {[%clk 0:44:59]} Ra8 {[%clk 0:35:55]} 28. Kf3 
{[%clk 0:44:12]} Kf8 {[%clk 0:35:43]} 29. e4 {[%clk 0:39:05]} Ke7 
{[%clk 0:34:58]} 30. Ke3 {[%clk 0:39:15]} Kd6 {[%clk 0:32:28]} 31. Kd3 
{[%clk 0:39:38]} Kc6 {[%clk 0:32:18]} 32. Kc4 {[%clk 0:39:23]} Kb6 
{[%clk 0:32:33]} 33. Ra2 {[%clk 0:36:05]} Rc8+ {[%clk 0:31:18]} 34. Kd3 
{[%clk 0:32:29]} Ra8 {[%clk 0:28:02]} 35. Kc4 {[%clk 0:32:45]} Rc8+ 1/2-1/2

[Event "21th IPCA World Individual Chp."]
[Site "followchess.com"]
[Date "2022.05.15"]
[Round "8"]
[White "Shapiro, Benny"]
[Black "Babanov, Aleksandr"]
[Result "1-0"]
[WhiteElo "1884"]
[BlackElo "1929"]
[ECO "A40"]
[WhiteFed "ISR"]
[BlackFed "RUS"]
[FCGameId "-1993803203"]
[WhiteFideId "2801582"]
[BlackFideId "24117412"]
[TimeControl "5400+30"]

1. d4 {[%clk 1:30:58]} g6 {[%clk 1:30:54]} 2. e4 {[%clk 1:31:18]} Bg7 
{[%clk 1:31:19]} 3. c4 {[%clk 1:31:38]} d6 {[%clk 1:31:43]} 4. Nc3 
{[%clk 1:31:56]} Nc6 {[%clk 1:27:06]} 5. Be3 {[%clk 1:30:15]} e5 
{[%clk 1:27:22]} 6. d5 {[%clk 1:30:18]} Nce7 {[%clk 1:27:39]} 7. Be2 
{[%clk 1:30:00]} f5 {[%clk 1:27:59]} 8. f3 {[%clk 1:29:41]} Nf6 {[%clk 1:28:20]} 
9. Qd2 {[%clk 1:29:17]} O-O 10. Bh6 fxe4 {[%clk 1:17:29]} 11. fxe4 
{[%clk 1:28:45]} Ng4 {[%clk 1:09:52]} 12. Bxg7 {[%clk 1:28:41]} Kxg7 
{[%clk 1:09:38]} 13. Nf3 {[%clk 1:28:48]} Ng8 {[%clk 1:08:59]} 14. O-O 
{[%clk 1:28:46]} Bd7 {[%clk 1:05:40]} 15. b4 {[%clk 1:25:36]} Qe7 
{[%clk 0:56:17]} 16. h3 {[%clk 1:22:00]} N4h6 {[%clk 0:53:40]} 17. Qe3 
{[%clk 1:21:37]} b6 {[%clk 0:52:26]} 18. c5 {[%clk 1:19:48]} Nf7 
{[%clk 0:40:04]} 19. a4 {[%clk 1:17:36]} Nf6 {[%clk 0:36:59]} 20. Nd2 
{[%clk 1:14:58]} a5 {[%clk 0:28:52]} 21. cxb6 {[%clk 1:10:24]} axb4 
{[%clk 0:18:00]} 22. Nb5 {[%clk 1:05:19]} cxb6 {[%clk 0:17:18]} 23. Qxb6 
{[%clk 1:04:50]} Rfb8 {[%clk 0:16:02]} 24. Qe3 {[%clk 1:04:30]} Nh5 
{[%clk 0:12:17]} 25. Nc7 {[%clk 0:57:17]} Nf4 {[%clk 0:06:13]} 26. Nxa8 
{[%clk 0:56:07]} Rxa8 {[%clk 0:06:35]} 27. Nf3 {[%clk 0:54:18]} Ng5 
{[%clk 0:04:52]} 28. Bb5 {[%clk 0:52:11]} Bc8 {[%clk 0:04:06]} 29. Kh2 
{[%clk 0:49:40]} b3 {[%clk 0:03:14]} 30. Rab1 {[%clk 0:47:42]} Ba6 
{[%clk 0:01:59]} 31. Rf2 {[%clk 0:45:42]} Bxb5 {[%clk 0:01:17]} 32. axb5 
{[%clk 0:45:55]} Nf7 {[%clk 0:00:42]} 33. Rxb3 {[%clk 0:45:17]} g5 
{[%clk 0:01:01]} 34. b6 {[%clk 0:44:16]} Rb8 {[%clk 0:01:15]} 35. Ra2 
{[%clk 0:43:54]} g4 {[%clk 0:00:53]} 36. Ng1 {[%clk 0:43:02]} Nh6 
{[%clk 0:00:39]} 37. Ra7 {[%clk 0:42:35]} Rb7 {[%clk 0:00:36]} 38. Rxb7 
{[%clk 0:42:28]} Qxb7 {[%clk 0:01:05]} 39. Qc3 {[%clk 0:40:47]} Qa6 
{[%clk 0:01:05]} 40. Rb2 {[%clk 0:40:08]} Qf1 {[%clk 0:00:39]} 41. b7 
{[%clk 0:39:55]} Nd3 {[%clk 0:00:45]} 42. b8=Q {[%clk 0:39:17]} g3+ 
{[%clk 0:00:42]} 43. Kh1 {[%clk 0:38:50]} Nf2+ {[%clk 0:00:50]} 44. Rxf2 
{[%clk 0:39:05]} gxf2 {[%clk 0:01:01]} 45. Qg3+ {[%clk 0:34:37]} Kf7 
{[%clk 0:00:37]} 46. Qa7+ {[%clk 0:34:36]} Ke8 {[%clk 0:00:45]} 47. Qgxf2 1-0

[Event "21th IPCA World Individual Chp."]
[Site "followchess.com"]
[Date "2022.05.15"]
[Round "8"]
[White "Alperovich, Asher"]
[Black "Campos, Eugenio"]
[Result "0-1"]
[WhiteElo "1865"]
[BlackElo "2247"]
[ECO "A66"]
[WhiteFed "ISR"]
[BlackFed "ANG"]
[FCGameId "1725341148"]
[WhiteFideId "2803275"]
[BlackFideId "10100156"]
[TimeControl "5400+30"]

1. d4 {[%clk 1:28:48]} Nf6 {[%clk 1:30:53]} 2. c4 {[%clk 1:29:02]} c5 
{[%clk 1:31:12]} 3. d5 {[%clk 1:29:28]} e6 {[%clk 1:31:36]} 4. Nc3 
{[%clk 1:29:54]} exd5 {[%clk 1:31:57]} 5. cxd5 {[%clk 1:30:23]} d6 
{[%clk 1:32:19]} 6. e4 {[%clk 1:30:40]} g6 {[%clk 1:32:43]} 7. f4 
{[%clk 1:31:08]} a6 {[%clk 1:32:55]} 8. a4 {[%clk 1:30:38]} Bg7 {[%clk 1:33:18]} 
9. Nf3 {[%clk 1:31:01]} O-O {[%clk 1:33:28]} 10. Be2 {[%clk 1:31:27]} Bg4 
{[%clk 1:33:15]} 11. O-O {[%clk 1:31:31]} Re8 {[%clk 1:33:25]} 12. h3 
{[%clk 1:31:14]} Bxf3 {[%clk 1:33:37]} 13. Bxf3 {[%clk 1:31:37]} Nbd7 
{[%clk 1:33:42]} 14. Re1 {[%clk 1:29:23]} Qc7 {[%clk 1:33:21]} 15. Be3 
{[%clk 1:15:21]} c4 {[%clk 1:31:39]} 16. Kh1 {[%clk 1:12:40]} Nc5 
{[%clk 1:31:36]} 17. Bxc5 {[%clk 1:12:34]} Qxc5 {[%clk 1:31:52]} 18. e5 
{[%clk 1:12:57]} dxe5 {[%clk 1:31:42]} 19. fxe5 {[%clk 1:13:24]} Nd7 
{[%clk 1:31:56]} 20. e6 {[%clk 1:13:07]} Ne5 {[%clk 1:32:07]} 21. exf7+ 
{[%clk 1:06:17]} Nxf7 {[%clk 1:32:09]} 22. Bg4 {[%clk 1:04:34]} Ne5 
{[%clk 1:32:02]} 23. Be6+ {[%clk 1:04:16]} Kh8 {[%clk 1:32:19]} 24. Ne4 
{[%clk 1:01:30]} Qb6 {[%clk 1:30:27]} 25. Ng5 {[%clk 0:53:14]} Rf8 
{[%clk 1:28:20]} 26. Rxe5 {[%clk 0:42:40]} Bxe5 {[%clk 1:28:41]} 27. Nf7+ 
{[%clk 0:43:05]} Rxf7 {[%clk 1:28:44]} 28. Bxf7 {[%clk 0:43:33]} Rf8 
{[%clk 1:28:45]} 29. Qe2 {[%clk 0:37:20]} Qxb2 {[%clk 1:26:02]} 0-1

[Event "21th IPCA World Individual Chp."]
[Site "followchess.com"]
[Date "2022.05.15"]
[Round "8"]
[White "Valenta, Vit Vaclav"]
[Black "Gerasimova, Svetlana"]
[Result "0-1"]
[WhiteElo "2014"]
[BlackElo "1906"]
[ECO "B21"]
[WhiteFed "CZE"]
[BlackFed "RUS"]
[FCGameId "1957565596"]
[WhiteFideId "307440"]
[BlackFideId "4145968"]
[TimeControl "5400+30"]

1. f4 {[%clk 1:30:56]} c5 {[%clk 1:30:52]} 2. e4 {[%clk 1:31:07]} d5 
{[%clk 1:30:59]} 3. exd5 {[%clk 1:31:24]} Qxd5 {[%clk 1:31:24]} 4. Nc3 
{[%clk 1:31:38]} Qd8 {[%clk 1:31:43]} 5. Nf3 {[%clk 1:31:48]} a6 
{[%clk 1:31:31]} 6. a4 {[%clk 1:31:52]} Nc6 {[%clk 1:31:26]} 7. Bc4 
{[%clk 1:31:35]} Nf6 {[%clk 1:22:28]} 8. O-O {[%clk 1:25:02]} g6 
{[%clk 1:15:39]} 9. d3 {[%clk 1:20:54]} Bg7 {[%clk 1:15:26]} 10. h3 
{[%clk 1:15:44]} O-O {[%clk 1:14:35]} 11. Be3 {[%clk 1:09:26]} Nd4 
{[%clk 1:10:28]} 12. Qd2 {[%clk 1:01:36]} Rb8 {[%clk 0:51:11]} 13. a5 
{[%clk 0:57:41]} Nd7 {[%clk 0:30:55]} 14. Na4 {[%clk 0:43:04]} b5 
{[%clk 0:28:29]} 15. axb6 {[%clk 0:43:18]} Nxb6 {[%clk 0:28:37]} 16. Nxb6 
{[%clk 0:42:17]} Qxb6 {[%clk 0:27:52]} 17. Bxd4 {[%clk 0:40:07]} cxd4 
{[%clk 0:26:06]} 18. b3 {[%clk 0:37:57]} Qd6 {[%clk 0:24:14]} 19. Ng5 
{[%clk 0:36:46]} h6 {[%clk 0:23:14]} 20. Ne4 {[%clk 0:35:54]} Qc6 
{[%clk 0:23:18]} 21. Ra5 {[%clk 0:33:09]} Rb6 {[%clk 0:20:46]} 22. Rfa1 
{[%clk 0:28:15]} Bb7 {[%clk 0:20:11]} 23. Nc5 {[%clk 0:25:32]} h5 
{[%clk 0:08:05]} 24. Nxb7 {[%clk 0:20:49]} Qxb7 {[%clk 0:08:25]} 25. Rxa6 
{[%clk 0:21:07]} Rxa6 {[%clk 0:08:08]} 26. Rxa6 {[%clk 0:21:36]} Bh6 
{[%clk 0:07:26]} 27. Rxg6+ {[%clk 0:17:58]} Kh7 {[%clk 0:07:52]} 28. Ra6 
{[%clk 0:16:12]} Qc7 {[%clk 0:07:16]} 29. Ra5 {[%clk 0:15:25]} f5 
{[%clk 0:06:17]} 30. Qe2 {[%clk 0:14:10]} Qxa5 {[%clk 0:06:34]} 0-1